bitfinex-derivatives/quotes_SOLF0:USTF0_20220102
["timestamp","ask_amount","ask_price","bid_price","bid_amount"]
[1641134996625,9.57363595,175.34,175.27,1.27221475]
[1641134997625,2.77163595,175.33,175.27,1.27221475]
[1641134998928,67.69719,175.34,175.27,1.27221475]
[1641134999530,2.77074376,175.33,175.27,1.27221475]
[1641135000129,67.69719,175.34,175.27,1.27221475]
[1641135000331,40.0324,175.34,175.27,1.27221475]
[1641135000732,27.66479,175.32,175.27,1.27221475]
[1641135001834,21.18549402,175.32,175.27,1.27221475]
[1641135002035,2.77591174,175.31,175.26,44.97234306]
[1641135002739,2.77591174,175.31,175.27,1.27324434]
[1641135014858,21.18549402,175.32,175.27,1.27324434]
[1641135015057,60.89519,175.34,175.27,1.27324434]
[1641135015558,2.77529124,175.33,175.27,1.27324434]
[1641135015961,7.65029124,175.33,175.27,1.27324434]
[1641135016360,10.65029124,175.33,175.27,1.27324434]
[1641135017064,2.77529124,175.32,175.27,1.27324434]
[1641135018863,2.77529124,175.32,175.26,12.13034306]
[1641135020568,14.9056343,175.33,175.25,12.13034306]
[1641135022468,14.9056343,175.33,175.24,19.49654592]
[1641135022668,19.1236343,175.33,175.24,19.49654592]
[1641135023169,2.77529124,175.32,175.24,19.49654592]
[1641135024073,30.44008124,175.32,175.24,19.49654592]
[1641135024571,2.77529124,175.31,175.24,19.49654592]
[1641135027178,2.77529124,175.31,175.25,12.13034306]
[1641135032980,2.77529124,175.31,175.25,13.4035874]
[1641135034283,2.77529124,175.33,175.26,27.66479]
[1641135035386,14.9056343,175.33,175.27,1.27324434]
[1641135037689,2.77529124,175.33,175.27,1.27324434]
[1641135040987,2.77529124,175.33,175.25,13.4035874]
[1641135041788,2.77529124,175.33,175.26,27.66479]
[1641135042290,2.77529124,175.33,175.25,13.4035874]
[1641135042692,2.77529124,175.33,175.27,1.27324434]
[1641135043393,14.9056343,175.33,175.25,12.13034306]
[1641135043793,14.9056343,175.33,175.25,39.79513306]
[1641135044899,2.77529124,175.33,175.26,1.27324434]
[1641135045298,14.9056343,175.33,175.26,1.27324434]
[1641135046599,12.13034306,175.32,175.26,1.27324434]
[1641135047400,14.9056343,175.33,175.26,1.27324434]
[1641135053806,14.9056343,175.33,175.25,12.13034306]
[1641135054406,14.9056343,175.33,175.29,4.04973811]
[1641135055909,12.13034306,175.32,175.28,4.04973811]
[1641135056712,14.9056343,175.33,175.29,4.04973811]
[1641135057311,12.13034306,175.32,175.28,4.04973811]
[1641135057912,14.9056343,175.33,175.29,4.04973811]
[1641135059114,12.13034306,175.32,175.28,4.04973811]
[1641135060815,2.77529124,175.33,175.28,4.04973811]
[1641135060816,14.9056343,175.33,175.28,4.04973811]
[1641135062714,14.9056343,175.33,175.24,1.27324434]
[1641135063218,14.9056343,175.33,175.28,4.04634306]
[1641135063917,14.9056343,175.33,175.24,19.49339596]
[1641135064519,14.9056343,175.33,175.28,4.04630727]
[1641135065120,14.9056343,175.33,175.24,19.49339596]
[1641135065921,12.13034306,175.32,175.27,4.04652689]
[1641135066822,12.13034306,175.32,175.24,1.27324434]
[1641135067024,14.9056343,175.32,175.26,4.04660252]
[1641135067623,12.13034306,175.31,175.27,4.05015199]
[1641135068223,2.77529124,175.32,175.24,1.27324434]
[1641135068925,12.15067771,175.31,175.27,4.0502259]
[1641135069725,12.15067771,175.31,175.23,71.69963306]
[1641135070426,4.05025172,175.27,175.26,4.05025172]
[1641135071125,12.15067771,175.31,175.23,71.69963306]
[1641135071325,4.967,175.29,175.23,71.69963306]
[1641135071826,4.05025954,175.27,175.26,4.05025954]
[1641135072428,4.967,175.29,175.23,71.69963306]
[1641135072627,4.967,175.29,175.23,59.56929]
[1641135073129,4.05026441,175.27,175.26,4.05026441]
[1641135073733,4.05026441,175.27,175.23,59.56929]
[1641135073734,4.967,175.29,175.23,59.56929]
[1641135074330,4.05035972,175.26,175.23,59.56929]
[1641135074532,4.05035972,175.26,175.24,1.27316461]
[1641135075033,4.967,175.29,175.23,27.66479]
[1641135075230,44.19607771,175.3,175.23,27.66479]
[1641135075732,4.05030255,175.26,175.24,1.27317033]
[1641135076331,38.7744,175.3,175.23,27.66479]
[1641135076933,4.05037673,175.26,175.24,1.27316291]
[1641135077133,10.50537673,175.26,175.24,1.27316291]
[1641135077734,13.50537673,175.26,175.24,1.27316291]
[1641135077936,3.0,175.25,175.22,12.13034306]
[1641135078136,6.455,175.26,175.23,1.27013289]
[1641135078837,2.77195793,175.25,175.18,1.27001641]
[1641135079036,34.73565793,175.25,175.18,1.27001641]
[1641135079538,37.73565793,175.25,175.18,1.27001641]
[1641135079736,4.04197237,175.23,175.17,61.01089]
[1641135080140,31.9637,175.25,175.18,1.27001064]
[1641135080837,31.9637,175.25,175.17,61.01089]
[1641135081037,4.04202221,175.22,175.17,61.01089]
[1641135081237,8.92402221,175.22,175.17,61.01089]
[1641135081639,4.882,175.22,175.18,1.27000828]
[1641135082239,8.92410929,175.22,175.17,61.01089]
[1641135083237,4.882,175.22,175.18,1.27001194]
[1641135084039,4.882,175.22,175.17,61.01089]
[1641135084640,4.882,175.22,175.18,1.27002126]
[1641135085040,4.04192576,175.23,175.18,1.27002126]
[1641135085241,31.9637,175.25,175.18,1.27002126]
[1641135085440,4.04182952,175.24,175.18,1.27002126]
[1641135086241,5.7032052,175.27,175.18,1.27002126]
[1641135086441,4.497,175.24,175.18,1.27002126]
[1641135086843,8.53876791,175.24,175.18,1.27002126]
[1641135087642,4.497,175.24,175.18,1.27002126]
[1641135088243,4.497,175.24,175.18,19.48155516]
[1641135088944,4.497,175.24,175.18,13.40036432]
[1641135089144,4.497,175.24,175.18,1.27002126]
[1641135089746,4.497,175.24,175.22,4.04153488]
[1641135090349,4.497,175.24,175.23,4.0511544]
[1641135091149,7.27533959,175.24,175.22,4.05140016]
[1641135091751,2.77835538,175.23,175.21,1.27002126]
[1641135092351,4.497,175.24,175.18,12.13034306]
[1641135092551,44.69820047,175.26,175.22,4.05147778]
[1641135093053,2.77842467,175.25,175.21,4.0514775]
[1641135094657,12.15420047,175.25,175.18,1.2730528]
[1641135095157,37.733,175.26,175.18,1.2730528]
[1641135095359,12.1553825,175.24,175.2,4.05179417]
[1641135096057,12.1553825,175.24,175.18,1.2730528]
[1641135096256,12.89003045,175.25,175.17,61.01089]
[1641135096857,3.0,175.22,175.2,4.05186114]
[1641135097059,9.309,175.22,175.2,4.05186114]
[1641135097757,2.778773,175.21,175.17,31.7172458]
[1641135098560,21.46458341,175.22,175.17,27.66479]
[1641135099561,2.77937236,175.21,175.18,5.32530572]
[1641135100163,12.15558341,175.23,175.17,27.66479]
[1641135100764,12.15558341,175.23,175.19,4.05220299]
[1641135101063,27.66479,175.22,175.19,4.05220299]
[1641135101262,34.30079,175.22,175.19,4.05220299]
[1641135102164,46.45637341,175.22,175.18,4.0522948]
[1641135102762,34.30079,175.22,175.13,33.8031]
[1641135102961,34.6146,175.21,175.13,33.8031]
[1641135103662,34.6146,175.21,175.14,5.28198173]
[1641135103861,28.13142379,175.21,175.14,5.28198173]
[1641135104963,28.13142379,175.21,175.13,37.82243417]
[1641135106665,32.58779,175.22,175.13,37.82243417]
[1641135107066,32.58779,175.22,175.13,33.8031]
[1641135108170,2.77950789,175.21,175.19,4.01933417]
[1641135109170,2.77950789,175.21,175.18,4.01933417]
[1641135113478,2.77950789,175.21,175.19,4.01933417]
[1641135114079,2.77950789,175.21,175.18,4.01933417]
[1641135114879,2.77950789,175.21,175.19,4.01933417]
[1641135115680,2.77950789,175.21,175.19,10.01633417]
[1641135115878,2.77950789,175.21,175.19,5.997]
[1641135116081,13.08361039,175.25,175.19,5.997]
[1641135116780,12.0580025,175.25,175.19,5.997]
[1641135117080,42.7227925,175.27,175.23,4.0512922]
[1641135117683,12.0580025,175.26,175.22,4.0512922]
[1641135118483,42.7227925,175.27,175.23,4.0512922]
[1641135119087,12.0580025,175.26,175.22,4.0512922]
[1641135122993,12.0580025,175.25,175.21,4.0512922]
[1641135124291,12.0580025,175.26,175.22,4.0512922]
[1641135126491,12.0580025,175.26,175.18,45.56994306]
[1641135126492,12.0580025,175.26,175.21,4.0512922]
[1641135127592,12.0580025,175.26,175.22,4.0512922]
[1641135128896,15.0580025,175.26,175.22,4.0512922]
[1641135129096,12.0580025,175.26,175.22,4.0512922]
[1641135129295,15.0580025,175.26,175.22,4.0512922]
[1641135129593,15.0580025,175.26,175.21,4.0512922]
[1641135129794,12.0580025,175.25,175.21,4.0512922]
[1641135130294,12.0580025,175.25,175.2,4.0512922]
[1641135130996,12.0580025,175.24,175.2,4.0512922]
[1641135131596,12.0580025,175.25,175.21,4.0512922]
[1641135132800,15.0580025,175.25,175.21,4.0512922]
[1641135133098,12.0580025,175.23,175.19,4.0512922]
[1641135137404,15.0580025,175.23,175.19,4.0512922]
[1641135137607,12.0580025,175.23,175.19,4.0512922]
[1641135137806,15.0580025,175.24,175.19,4.0512922]
[1641135138306,12.0580025,175.24,175.19,4.0512922]
[1641135138506,12.0580025,175.24,175.2,4.0512922]
[1641135139107,15.0580025,175.24,175.2,4.0512922]
[1641135139307,15.0580025,175.24,175.19,4.0512922]
[1641135139711,4.05196183,175.2,175.19,4.0512922]
[1641135142313,12.0580025,175.24,175.19,4.0512922]
[1641135143213,12.0580025,175.26,175.18,5.571]
[1641135143813,12.0580025,175.26,175.18,17.70134306]
[1641135144916,15.0580025,175.26,175.18,17.70134306]
[1641135146816,12.0580025,175.25,175.18,5.571]
[1641135147017,12.0580025,175.25,175.17,12.13034306]
[1641135148518,20.2190025,175.26,175.18,12.13034306]
[1641135151426,12.0580025,175.25,175.17,12.13034306]
[1641135152530,3.0,175.23,175.17,12.13034306]
[1641135153327,15.0580025,175.23,175.15,44.09804306]
[1641135154431,12.0580025,175.23,175.15,44.09804306]
[1641135156534,14.83712188,175.23,175.16,1.27295119]
[1641135162740,2.77911938,175.23,175.16,1.27295119]
[1641135164438,57.68539,175.24,175.16,1.27295119]
[1641135165139,2.77282365,175.23,175.16,1.27295119]
[1641135165542,7.76182365,175.23,175.16,1.27295119]
[1641135165740,4.989,175.23,175.16,1.27295119]
[1641135165942,3.0,175.2,175.16,1.27295119]
[1641135166342,3.0,175.21,175.16,1.27295119]
[1641135167141,27.66479,175.2,175.16,1.27295119]
[1641135167442,27.66479,175.2,175.15,31.9677]
[1641135167641,30.43789511,175.2,175.15,31.9677]
[1641135168443,27.66479,175.2,175.15,31.9677]
[1641135168643,27.66479,175.2,175.15,25.48369682]
[1641135169144,27.66479,175.2,175.16,1.27003444]
[1641135169745,27.66479,175.2,175.15,25.48369682]
[1641135170446,27.66479,175.2,175.16,1.27044183]
[1641135178850,12.0580025,175.23,175.16,1.27044183]
[1641135179051,12.0580025,175.23,175.16,5.43444183]
[1641135179952,2.77859025,175.23,175.17,1.27044183]
[1641135181153,27.66479,175.27,175.17,1.27044183]
[1641135181154,14.83659275,175.26,175.18,12.13034306]
[1641135181351,14.83659275,175.26,175.18,39.79513306]
[1641135181952,2.77859025,175.26,175.19,1.27044183]
[1641135184555,12.0580025,175.25,175.16,1.27044183]
[1641135185457,14.83659275,175.26,175.16,1.27044183]
[1641135186261,2.77859025,175.26,175.16,1.27044183]
[1641135187060,14.83659275,175.26,175.16,1.27044183]
[1641135187659,2.77859025,175.26,175.16,1.27044183]
[1641135188761,2.77859025,175.26,175.16,19.48296467]
[1641135189260,2.77859025,175.26,175.17,12.13034306]
[1641135190759,2.77859025,175.26,175.16,19.48296467]
[1641135192866,14.83659275,175.26,175.18,12.13034306]
[1641135195969,12.0580025,175.25,175.17,12.13034306]
[1641135197475,14.83659275,175.26,175.18,12.13034306]
[1641135199274,14.83659275,175.26,175.18,13.40078489]
[1641135199580,2.77859025,175.26,175.18,13.40078489]
[1641135200174,2.77859025,175.26,175.19,12.13034306]
[1641135200775,2.77859025,175.26,175.19,19.48296467]
[1641135202877,2.77859025,175.26,175.23,4.04946511]
[1641135202878,4.04946511,175.24,175.23,4.04946511]
[1641135205381,14.83659275,175.28,175.23,4.04946511]
[1641135206181,12.0580025,175.27,175.23,4.04946511]
[1641135206980,4.04951419,175.24,175.23,4.04946511]
[1641135209884,2.77859025,175.25,175.22,4.04946511]
[1641135210486,4.04955721,175.23,175.22,4.04946511]
[1641135212991,4.04955721,175.23,175.19,19.49746992]
[1641135216097,9.94355721,175.23,175.19,19.49746992]
[1641135216801,4.04955721,175.22,175.21,4.04967863]
[1641135221507,4.04955721,175.22,175.2,4.04967863]
[1641135221508,2.77699698,175.22,175.2,4.04967863]
[1641135222208,4.04987246,175.21,175.2,4.04967863]
[1641135225409,4.04987246,175.21,175.16,12.13034306]
[1641135225410,2.77699698,175.22,175.18,4.04967863]
[1641135225608,33.56029698,175.22,175.18,4.04967863]
[1641135226414,4.0503529,175.19,175.18,4.04967863]
[1641135228413,2.77699698,175.21,175.18,3.0]
[1641135228612,12.0580025,175.24,175.2,3.0]
[1641135229212,12.0580025,175.28,175.2,15.13034306]
[1641135229711,12.0580025,175.28,175.2,12.13034306]
[1641135230316,59.02669,175.3,175.2,12.13034306]
[1641135230514,12.15298986,175.29,175.2,18.22731712]
[1641135230712,17.27998986,175.29,175.2,18.22731712]
[1641135231217,27.66479,175.26,175.2,18.22731712]
[1641135231919,21.18301447,175.26,175.2,18.22731712]
[1641135232118,21.18301447,175.26,175.2,21.22731712]
[1641135232317,12.15298986,175.28,175.2,21.22731712]
[1641135232617,12.15298986,175.28,175.2,18.22731712]
[1641135233317,27.66479,175.27,175.2,18.22731712]
[1641135233716,12.15298986,175.26,175.18,39.79513306]
[1641135233917,45.17018986,175.26,175.18,39.79513306]
[1641135234516,45.17018986,175.26,175.19,12.13034306]
[1641135234718,33.0172,175.26,175.19,18.2281725]
[1641135236122,33.0172,175.26,175.18,39.79513306]
[1641135237121,33.0172,175.26,175.18,42.79513306]
[1641135237522,33.0172,175.26,175.18,39.79513306]
[1641135238023,33.0172,175.26,175.19,18.22304199]
[1641135240328,45.17018986,175.26,175.17,12.13034306]
[1641135240529,50.54418986,175.26,175.17,12.13034306]
[1641135241430,27.66479,175.24,175.17,12.13034306]
[1641135246235,27.66479,175.24,175.15,12.13034306]
[1641135247239,12.15298986,175.22,175.14,44.30094306]
[1641135247437,27.66479,175.21,175.14,44.30094306]
[1641135249343,27.66479,175.21,175.15,18.22743222]
[1641135250039,27.66479,175.21,175.14,44.30094306]
[1641135250644,27.66479,175.21,175.14,47.30094306]
[1641135250942,27.66479,175.21,175.14,32.1706]
[1641135255147,32.08479,175.21,175.14,32.1706]
[1641135257454,32.08479,175.21,175.12,27.66479]
[1641135260057,32.08479,175.21,175.12,30.66479]
[1641135260658,32.08479,175.21,175.12,27.66479]
[1641135265166,32.08479,175.21,175.12,30.66479]
[1641135265567,32.08479,175.21,175.12,27.66479]
[1641135265865,32.08479,175.21,175.12,30.66479]
[1641135266065,27.66479,175.21,175.14,12.13034306]
[1641135267169,44.91508986,175.22,175.14,12.13034306]
[1641135268075,27.66479,175.21,175.14,12.13034306]
[1641135268273,31.82379,175.21,175.14,12.13034306]
[1641135268576,31.82379,175.21,175.13,12.13034306]
[1641135269274,2.77784953,175.2,175.13,19.50024397]
[1641135276487,2.77784953,175.2,175.14,3.0]
[1641135276886,2.77784953,175.2,175.15,1.27273625]
[1641135277587,2.77784953,175.21,175.13,22.50024397]
[1641135277987,2.77784953,175.21,175.13,19.50024397]
[1641135278188,2.77784953,175.21,175.14,1.27273625]
[1641135278890,2.77784953,175.21,175.13,19.50024397]
[1641135281590,14.93083939,175.21,175.13,19.50024397]
[1641135282293,2.77784953,175.21,175.13,19.50024397]
[1641135282992,2.77784953,175.21,175.13,22.50024397]
[1641135283193,2.77784953,175.21,175.13,19.50024397]
[1641135283591,2.77784953,175.21,175.14,13.40307931]
[1641135284196,2.77784953,175.21,175.14,12.13034306]
[1641135285995,2.77784953,175.21,175.14,13.40307931]
[1641135286800,2.77784953,175.21,175.14,12.13034306]
[1641135286997,2.77784953,175.21,175.14,15.13034306]
[1641135287798,2.77784953,175.21,175.15,13.40307931]
[1641135288798,2.77784953,175.21,175.15,41.06786931]
[1641135289301,4.05052769,175.19,175.18,4.05052769]
[1641135293306,3.12192769,175.19,175.18,7.05052769]
[1641135293507,12.15298986,175.23,175.17,3.0]
[1641135294411,12.15298986,175.23,175.18,1.27292771]
[1641135294610,2.77717829,175.24,175.18,1.27292771]
[1641135294811,2.77717829,175.24,175.18,28.93771771]
[1641135295609,27.66479,175.25,175.19,1.27294599]
[1641135296309,2.77702615,175.24,175.18,27.66479]
[1641135297010,33.72079,175.25,175.19,1.27289664]
[1641135297711,33.72079,175.25,175.18,39.79513306]
[1641135297913,2.77702615,175.24,175.18,27.66479]
[1641135298514,45.87377986,175.25,175.19,1.27341771]
[1641135299412,2.77826086,175.24,175.18,27.66479]
[1641135300313,18.21164085,175.25,175.19,1.27339707]
[1641135300916,2.77838342,175.24,175.18,27.66479]
[1641135301614,18.21164085,175.25,175.19,1.27346365]
[1641135302216,2.77831899,175.24,175.18,27.66479]
[1641135303019,2.77831899,175.24,175.17,42.93724306]
[1641135303419,12.15564085,175.24,175.19,1.27345529]
[1641135304019,2.7785212,175.24,175.18,1.27344638]
[1641135304221,2.7785212,175.24,175.18,4.27344638]
[1641135305119,2.7785212,175.24,175.19,1.2735164]
[1641135305321,2.7785212,175.24,175.19,13.40385946]
[1641135305819,41.99272383,175.26,175.19,1.2735164]
[1641135306524,29.8386,175.26,175.19,1.2735164]
[1641135306723,2.77786894,175.25,175.18,19.50074808]
[1641135306924,9.49986894,175.25,175.18,19.50074808]
[1641135307324,2.77795701,175.24,175.18,19.50074808]
[1641135308128,34.38679,175.25,175.18,13.40385946]
[1641135308427,46.54179416,175.25,175.18,1.2735164]
[1641135308929,14.93346831,175.24,175.17,30.8069]
[1641135309830,14.93346831,175.24,175.18,1.27344644]
[1641135310732,14.93346831,175.24,175.17,30.8069]
[1641135311731,2.77846415,175.24,175.18,1.27142266]
[1641135312431,2.77846415,175.24,175.17,30.8069]
[1641135313333,2.77846415,175.24,175.18,1.27142847]
[1641135313933,2.77846415,175.24,175.17,30.8069]
[1641135314532,2.77846415,175.24,175.18,1.27142853]
[1641135315232,2.77846415,175.24,175.17,30.8069]
[1641135315432,7.43946415,175.24,175.17,30.8069]
[1641135315734,4.661,175.24,175.17,30.8069]
[1641135315936,4.661,175.24,175.18,1.27345799]
[1641135315937,30.44318342,175.23,175.18,1.27345799]
[1641135317038,2.7785546,175.22,175.17,30.8069]
[1641135317637,27.66479,175.23,175.18,1.27343509]
[1641135318441,27.66479,175.23,175.17,30.8069]
[1641135318638,2.77863249,175.22,175.17,30.8069]
[1641135319342,27.66479,175.23,175.18,1.27343421]
[1641135320040,2.7786513,175.22,175.17,30.8069]
[1641135320742,59.45249,175.23,175.18,1.27342589]
[1641135321440,2.77875539,175.22,175.17,30.8069]
[1641135322041,71.60903144,175.23,175.17,30.8069]
[1641135322240,71.60903144,175.23,175.18,1.27342027]
[1641135322439,43.94424144,175.23,175.18,1.27342027]
[1641135322840,2.77879577,175.22,175.16,1.27342142]
[1641135323542,71.60903144,175.23,175.15,119.58537268]
[1641135324242,71.60903144,175.23,175.16,1.27341802]
[1641135324442,2.77883312,175.22,175.16,1.27341802]
[1641135325046,46.94424144,175.23,175.15,119.58537268]
[1641135325443,74.60903144,175.23,175.15,119.58537268]
[1641135325643,2.77882869,175.22,175.16,1.27341842]
[1641135326247,74.60903144,175.23,175.15,119.58537268]
[1641135326844,74.60903144,175.23,175.16,1.27341173]
[1641135326845,2.77890239,175.22,175.16,1.27341173]
[1641135327645,74.60903144,175.23,175.15,107.45502962]
[1641135327945,12.15654144,175.22,175.15,107.45502962]
[1641135328447,2.77893565,175.22,175.16,1.2734087]
[1641135329247,34.7877,175.23,175.15,107.45502962]
[1641135329450,12.15701348,175.22,175.15,107.45502962]
[1641135329851,2.77893703,175.22,175.16,1.27340858]
[1641135330554,59.45249,175.23,175.15,107.45502962]
[1641135330754,71.59536537,175.23,175.15,107.45502962]
[1641135331255,2.77568705,175.22,175.16,1.2719272]
[1641135332059,59.45249,175.23,175.15,107.45502962]
[1641135332656,2.77564243,175.22,175.16,1.27193126]
[1641135333263,71.59536537,175.23,175.15,107.45502962]
[1641135333459,74.59536537,175.23,175.15,107.45502962]
[1641135333960,2.77570082,175.22,175.16,1.27192595]
[1641135334763,2.77570082,175.22,175.15,107.45502962]
[1641135334961,5.77570082,175.22,175.15,107.45502962]
[1641135335261,2.77570082,175.22,175.15,107.45502962]
[1641135335762,2.77569494,175.21,175.16,1.27192648]
[1641135336363,2.77570502,175.22,175.15,107.45502962]
[1641135337264,2.77570502,175.22,175.16,1.27192448]
[1641135338265,2.77570502,175.22,175.15,107.45502962]
[1641135338966,2.77570502,175.22,175.16,1.27191574]
[1641135339167,14.91858039,175.22,175.16,1.27191574]
[1641135339769,2.77570502,175.22,175.15,107.45502962]
[1641135339972,5.77570502,175.22,175.15,107.45502962]
[1641135341172,2.77570502,175.21,175.16,1.27191939]
[1641135341670,3.0,175.22,175.15,107.45502962]
[1641135341870,15.14287537,175.22,175.15,107.45502962]
[1641135342474,12.14287537,175.22,175.15,107.45502962]
[1641135342972,62.45249,175.23,175.15,107.45502962]
[1641135343173,2.77907646,175.21,175.16,1.2733959]
[1641135344075,59.45249,175.23,175.15,107.45502962]
[1641135344276,14.93622651,175.22,175.15,111.62802962]
[1641135344476,14.93622651,175.22,175.15,140.76192962]
[1641135344676,59.45249,175.23,175.15,140.76192962]
[1641135344876,59.45249,175.23,175.16,19.50099456]
[1641135345781,2.77864728,175.22,175.16,19.50099456]
[1641135346477,59.45249,175.23,175.16,19.50099456]
[1641135347077,59.45249,175.23,175.16,13.40377731]
[1641135347278,2.77878791,175.22,175.16,1.27343425]
[1641135347981,71.60875662,175.23,175.15,148.71927268]
[1641135348882,2.77877569,175.22,175.16,1.27342324]
[1641135349583,71.60875662,175.23,175.15,148.71927268]
[1641135350084,2.77878776,175.22,175.16,1.27342215]
[1641135350882,71.60875662,175.23,175.15,136.58892962]
[1641135351483,2.777127,175.22,175.16,1.27264896]
[1641135352186,71.60875662,175.23,175.15,136.58892962]
[1641135353083,2.77711365,175.22,175.16,1.27265017]
[1641135353686,71.60875662,175.23,175.16,1.27265017]
[1641135353885,4.04977993,175.19,175.18,4.04977993]
[1641135354487,2.77713737,175.22,175.16,1.27264802]
[1641135355188,71.60875662,175.23,175.18,4.0497824]
[1641135355389,4.0497824,175.19,175.18,4.0497824]
[1641135355988,2.77716209,175.22,175.16,1.27264577]
[1641135356589,43.94396662,175.23,175.15,136.58892962]
[1641135356790,4.04979256,175.19,175.18,4.04979256]
[1641135357792,2.77714564,175.22,175.16,1.27264726]
[1641135357994,5.556,175.2,175.16,1.27264726]
[1641135358593,5.556,175.2,175.15,136.58892962]
[1641135358793,4.04979674,175.19,175.18,4.04979674]
[1641135359694,5.556,175.2,175.16,1.27264521]
[1641135359895,71.60875662,175.23,175.16,1.27264521]
[1641135360295,4.04981586,175.19,175.18,4.04981586]
[1641135360998,71.60875662,175.23,175.15,136.58892962]
[1641135361197,71.60875662,175.23,175.16,1.27341643]
[1641135361396,43.94396662,175.23,175.16,1.27341643]
[1641135361897,71.60875662,175.23,175.16,1.27341643]
[1641135362097,4.0515952,175.19,175.18,4.0515952]
[1641135362699,43.94396662,175.23,175.16,1.27320798]
[1641135363898,4.05161599,175.19,175.18,4.05161599]
[1641135365602,43.94396662,175.23,175.16,1.27320092]
[1641135366204,4.05164838,175.19,175.18,4.05164838]
[1641135367504,71.60875662,175.23,175.16,1.27319985]
[1641135368004,4.05165457,175.19,175.18,4.05165457]
[1641135368806,2.77848788,175.21,175.16,1.27319718]
[1641135369508,17.30826662,175.22,175.18,4.05172787]
[1641135369811,12.15626662,175.22,175.18,4.05172787]
[1641135370108,59.45249,175.23,175.16,1.27319354]
[1641135370309,2.77852797,175.21,175.16,1.27319354]
[1641135370909,59.45249,175.23,175.16,1.27319354]
[1641135371119,14.93375406,175.22,175.18,4.05173652]
[1641135371810,14.93375406,175.22,175.15,136.58892962]
[1641135372010,14.93375406,175.22,175.16,1.27319136]
[1641135372610,59.45249,175.23,175.15,136.58892962]
[1641135372811,12.15588543,175.21,175.17,4.05196181]
[1641135373512,12.15588543,175.21,175.16,1.27316993]
[1641135374017,12.15588543,175.21,175.17,4.05195631]
[1641135374613,12.15588543,175.21,175.15,136.58892962]
[1641135374815,12.15588543,175.2,175.16,5.32523586]
[1641135375517,12.15574591,175.21,175.17,4.0519153]
[1641135375718,3.0,175.2,175.17,4.0519153]
[1641135376318,12.15574591,175.21,175.17,4.0519153]
[1641135376516,15.8902083,175.22,175.13,12.13034306]
[1641135376715,2.77878761,175.19,175.16,4.05208632]
[1641135377619,39.82127614,175.2,175.12,19.49997646]
[1641135378218,27.66479,175.2,175.12,19.49997646]
[1641135378421,2.77901256,175.19,175.16,4.05213849]
[1641135379120,58.07339,175.2,175.12,19.49997646]
[1641135379319,58.07339,175.2,175.17,4.05210373]
[1641135379519,27.66479,175.2,175.17,4.05210373]
[1641135379919,2.77880581,175.19,175.13,12.13034306]
[1641135380519,27.66479,175.2,175.17,4.0526791]
[1641135381120,27.66479,175.2,175.13,12.13034306]
[1641135381321,2.77930844,175.19,175.13,12.13034306]
[1641135382123,39.82120546,175.21,175.13,12.13034306]
[1641135382321,30.43910153,175.21,175.16,4.04539013]
[1641135382923,2.77431153,175.2,175.15,4.04555297]
[1641135383823,39.82120546,175.21,175.12,1.27315705]
[1641135384225,42.82120546,175.21,175.12,1.27315705]
[1641135384423,39.82120546,175.21,175.12,13.40350011]
[1641135384623,27.66479,175.21,175.12,19.48997756]
[1641135385425,4.04563528,175.17,175.14,4.04563528]
[1641135386025,2.7745812,175.2,175.12,1.27315705]
[1641135386729,4.04562989,175.17,175.14,4.04562989]
[1641135387327,2.7745812,175.2,175.12,1.27315705]
[1641135388128,4.04561422,175.17,175.14,4.04561422]
[1641135388728,2.7745812,175.2,175.12,1.27315705]
[1641135389628,4.04561925,175.17,175.14,4.04561925]
[1641135390228,2.7745812,175.2,175.12,1.27315705]
[1641135390831,4.04560206,175.17,175.14,4.04560206]
[1641135391934,27.66479,175.18,175.12,1.27315705]
[1641135392132,27.66479,175.18,175.15,4.05297634]
[1641135392634,2.7745812,175.17,175.12,1.27315705]
[1641135393435,27.66479,175.18,175.15,4.05301143]
[1641135394438,27.66479,175.18,175.12,1.27315705]
[1641135394638,2.77986445,175.17,175.12,1.27315705]
[1641135395337,33.71279,175.18,175.14,4.05320991]
[1641135395537,27.66479,175.18,175.14,4.05320991]
[1641135395938,27.66479,175.18,175.11,150.7294365]
[1641135396141,2.77979532,175.17,175.15,4.05312587]
[1641135397042,27.66479,175.18,175.11,150.7294365]
[1641135397240,56.83589,175.18,175.11,150.7294365]
[1641135397639,2.77969767,175.17,175.15,4.0530371]
[1641135398341,56.83589,175.18,175.12,1.27333943]
[1641135398541,68.99550925,175.18,175.14,4.05320642]
[1641135398940,56.83589,175.18,175.12,1.27333943]
[1641135399240,2.77984886,175.17,175.11,150.7294365]
[1641135399942,56.83589,175.18,175.14,4.05317266]
[1641135400541,2.77978502,175.17,175.15,4.05311651]
[1641135401242,27.66479,175.18,175.11,150.7294365]
[1641135401642,27.66479,175.18,175.14,4.05313634]
[1641135402446,2.77980393,175.17,175.11,43.71034306]